[Event "November 21 Late 2023"]
[Site "https://www.chess.com"]
[Date "2023.11.21"]
[Round "3"]
[White "Janaszak, Dawid"]
[Black "Szente Varga, Fruzsina"]
[Result "1-0"]
[Board "95"]
[TimeControl "180+1"]
[WhiteFideId "1119206"]
[BlackFideId "712264"]
[WhiteElo "2218"]
[BlackElo "1994"]
[WhiteTeam "POL"]
[BlackTeam "HUN"]
[WhiteClock "0:00:25"]
[BlackClock "0:00:05"]

1. e4 {[%clk 0:03:00]}  c5 {[%clk 0:02:52]} 2. Nc3 {[%clk 0:03:00]}  Nc6 {[%clk 0:02:49]} 3. Bb5 {[%clk 0:03:00]}  g6 {[%clk 0:02:43]} 4. Nf3 {[%clk 0:02:57]}  Bg7 {[%clk 0:02:43]} 5. O-O {[%clk 0:02:57]}  d6 {[%clk 0:02:36]} 6. e5 {[%clk 0:02:54]}  dxe5 {[%clk 0:02:36]} 7. Re1 {[%clk 0:02:55]}  Qc7 {[%clk 0:02:36]} 8. Qe2 {[%clk 0:02:43]}  Bg4 {[%clk 0:02:33]} 9. Bxc6+ {[%clk 0:02:30]}  bxc6 {[%clk 0:02:27]} 10. b3 {[%clk 0:02:20]}  f5 {[%clk 0:02:17]} 11. h3 {[%clk 0:02:16]}  Bxf3 {[%clk 0:02:17]} 12. Qxf3 {[%clk 0:02:17]}  e4 {[%clk 0:02:18]} 13. Qe2 {[%clk 0:02:13]}  Nf6 {[%clk 0:02:09]} 14. Qc4 {[%clk 0:02:13]}  Qd6 {[%clk 0:02:05]} 15. Ba3 {[%clk 0:02:10]}  Nd7 {[%clk 0:02:01]} 16. Rad1 {[%clk 0:02:00]}  Bd4 {[%clk 0:02:00]} 17. Ne2 {[%clk 0:01:48]}  Qd5 {[%clk 0:00:47]} 18. Qa6 {[%clk 0:01:48]}  O-O {[%clk 0:00:43]} 19. d3 {[%clk 0:01:35]}  e3 {[%clk 0:00:42]} 20. f3 {[%clk 0:01:33]}  Ne5 {[%clk 0:00:37]} 21. Rf1 {[%clk 0:01:23]}  g5 {[%clk 0:00:29]} 22. c3 {[%clk 0:01:23]}  Rf7 {[%clk 0:00:25]} 23. cxd4 {[%clk 0:01:21]}  cxd4 {[%clk 0:00:26]} 24. Rc1 {[%clk 0:01:14]}  Ng6 {[%clk 0:00:23]} 25. Rc5 {[%clk 0:01:13]}  Qd7 {[%clk 0:00:17]} 26. Qxc6 {[%clk 0:01:13]}  Qxc6 {[%clk 0:00:15]} 27. Rxc6 {[%clk 0:01:14]}  Ne5 {[%clk 0:00:16]} 28. Rc2 {[%clk 0:01:07]}  Nxd3 {[%clk 0:00:16]} 29. Rd1 {[%clk 0:01:08]}  Nf2 {[%clk 0:00:14]} 30. Rxd4 {[%clk 0:01:06]}  e5 {[%clk 0:00:14]} 31. Rd5 {[%clk 0:01:04]}  Re8 {[%clk 0:00:13]} 32. Rcc5 {[%clk 0:01:00]}  e4 {[%clk 0:00:14]} 33. Rxf5 {[%clk 0:00:58]}  exf3 {[%clk 0:00:14]} 34. Rxf3 {[%clk 0:00:46]}  Rxf3 {[%clk 0:00:14]} 35. gxf3 {[%clk 0:00:47]}  Nxh3+ {[%clk 0:00:15]} 36. Kf1 {[%clk 0:00:48]}  Nf4 {[%clk 0:00:15]} 37. Rxg5+ {[%clk 0:00:47]}  Kf7 {[%clk 0:00:16]} 38. Rf5+ {[%clk 0:00:47]}  Kg6 {[%clk 0:00:15]} 39. Rxf4 {[%clk 0:00:48]}  Rd8 {[%clk 0:00:15]} 40. Rd4 {[%clk 0:00:48]}  Rc8 {[%clk 0:00:15]} 41. Rc4 {[%clk 0:00:47]}  Rd8 {[%clk 0:00:15]} 42. Rd4 {[%clk 0:00:41]}  Rc8 {[%clk 0:00:15]} 43. Rd3 {[%clk 0:00:41]}  Rc2 {[%clk 0:00:15]} 44. Rxe3 {[%clk 0:00:41]}  Rxa2 {[%clk 0:00:15]} 45. Bc5 {[%clk 0:00:42]}  a5 {[%clk 0:00:15]} 46. Kf2 {[%clk 0:00:39]}  h5 {[%clk 0:00:15]} 47. Re5 {[%clk 0:00:39]}  h4 {[%clk 0:00:15]} 48. Re4 {[%clk 0:00:34]}  Kh5 {[%clk 0:00:15]} 49. Be7 {[%clk 0:00:34]}  Rb2 {[%clk 0:00:15]} 50. Rxh4+ {[%clk 0:00:32]}  Kg6 {[%clk 0:00:15]} 51. Ra4 {[%clk 0:00:29]}  Rxb3 {[%clk 0:00:16]} 52. Rxa5 {[%clk 0:00:30]}  Rb7 {[%clk 0:00:16]} 53. Bd6 {[%clk 0:00:30]}  Rb2 {[%clk 0:00:16]} 54. Be5 {[%clk 0:00:29]}  Rc2 {[%clk 0:00:16]} 55. f4 {[%clk 0:00:29]}  Kf5 {[%clk 0:00:16]} 56. Ke3 {[%clk 0:00:28]}  Kg4 {[%clk 0:00:13]} 57. Nd4 {[%clk 0:00:28]}  Rc1 {[%clk 0:00:13]} 58. Ke4 {[%clk 0:00:29]}  Re1+ {[%clk 0:00:13]} 59. Kd5 {[%clk 0:00:29]}  Rd1 {[%clk 0:00:12]} 60. Ra8 {[%clk 0:00:29]}  Kh5 {[%clk 0:00:12]} 61. Rg8 {[%clk 0:00:28]}  Kh6 {[%clk 0:00:12]} 62. f5 {[%clk 0:00:27]}  Rf1 {[%clk 0:00:12]} 63. f6 {[%clk 0:00:27]}  Kh7 {[%clk 0:00:11]} 64. Rg7+ {[%clk 0:00:27]}  Kh8 {[%clk 0:00:10]} 65. Rg2 {[%clk 0:00:27]}  Kh7 {[%clk 0:00:10]} 66. Ke6 {[%clk 0:00:27]}  Kh6 {[%clk 0:00:07]} 67. Nf5+ {[%clk 0:00:27]}  Kh7 {[%clk 0:00:06]} 68. Rh2+ {[%clk 0:00:25]}  Kg6 {[%clk 0:00:06]} 69. Ne7+ {[%clk 0:00:26]}  Kg5 {[%clk 0:00:06]} 70. Rg2+ {[%clk 0:00:26]}  Kh6 {[%clk 0:00:06]} 71. f7 {[%clk 0:00:25]}  Kh7 {[%clk 0:00:05]} 72. Rh2# {[%clk 0:00:25]} 1-0

[Event "November 21 Late 2023"]
[Site "https://www.chess.com"]
[Date "2023.11.21"]
[Round "3"]
[White "Jarocka, Liwia"]
[Black "elmusmolamas"]
[Result "1/2-1/2"]
[Board "97"]
[TimeControl "180+1"]
[WhiteFideId "21807558"]
[WhiteElo "2001"]
[BlackElo "2567"]
[WhiteTeam "POL"]
[WhiteClock "0:00:17"]
[BlackClock "0:00:05"]

1. e4 {[%clk 0:03:00]}  e6 {[%clk 0:02:58]} 2. d4 {[%clk 0:03:00]}  d5 {[%clk 0:02:59]} 3. Bd3 {[%clk 0:03:00]}  Nc6 {[%clk 0:02:58]} 4. c3 {[%clk 0:02:57]}  e5 {[%clk 0:02:58]} 5. Nf3 {[%clk 0:02:49]}  exd4 {[%clk 0:02:56]} 6. O-O {[%clk 0:02:46]}  dxe4 {[%clk 0:02:52]} 7. Bxe4 {[%clk 0:02:45]}  Nf6 {[%clk 0:02:53]} 8. Bxc6+ {[%clk 0:02:43]}  bxc6 {[%clk 0:02:54]} 9. Nxd4 {[%clk 0:02:43]}  c5 {[%clk 0:02:37]} 10. Qf3 {[%clk 0:02:31]}  Qd5 {[%clk 0:02:15]} 11. Re1+ {[%clk 0:02:25]}  Be7 {[%clk 0:02:15]} 12. Nc6 {[%clk 0:02:16]}  Be6 {[%clk 0:02:09]} 13. Qxd5 {[%clk 0:02:12]}  Nxd5 {[%clk 0:02:07]} 14. Nxe7 {[%clk 0:02:10]}  Kxe7 {[%clk 0:02:03]} 15. Nd2 {[%clk 0:02:09]}  Rhe8 {[%clk 0:01:58]} 16. Ne4 {[%clk 0:02:06]}  c4 {[%clk 0:01:55]} 17. g3 {[%clk 0:01:24]}  Kd7 {[%clk 0:01:51]} 18. Be3 {[%clk 0:01:20]}  Kc6 {[%clk 0:01:48]} 19. Ng5 {[%clk 0:01:13]}  h6 {[%clk 0:01:42]} 20. Nxe6 {[%clk 0:01:11]}  Rxe6 {[%clk 0:01:43]} 21. Bd4 {[%clk 0:01:10]}  Rxe1+ {[%clk 0:01:39]} 22. Rxe1 {[%clk 0:01:11]}  g6 {[%clk 0:01:40]} 23. Re2 {[%clk 0:01:09]}  a5 {[%clk 0:01:39]} 24. Kg2 {[%clk 0:01:07]}  a4 {[%clk 0:01:35]} 25. a3 {[%clk 0:01:05]}  Kd7 {[%clk 0:01:14]} 26. Bg7 {[%clk 0:01:04]}  h5 {[%clk 0:01:14]} 27. Bh6 {[%clk 0:01:03]}  Rb8 {[%clk 0:00:54]} 28. Bc1 {[%clk 0:01:00]}  Rb6 {[%clk 0:00:43]} 29. Re4 {[%clk 0:00:57]}  Rc6 {[%clk 0:00:43]} 30. h4 {[%clk 0:00:54]}  Nf6 {[%clk 0:00:40]} 31. Rd4+ {[%clk 0:00:53]}  Ke6 {[%clk 0:00:40]} 32. Bg5 {[%clk 0:00:50]}  Nh7 {[%clk 0:00:23]} 33. Re4+ {[%clk 0:00:45]}  Kf5 {[%clk 0:00:20]} 34. Re7 {[%clk 0:00:34]}  Nxg5 {[%clk 0:00:16]} 35. hxg5 {[%clk 0:00:34]}  Kxg5 {[%clk 0:00:16]} 36. Rxf7 {[%clk 0:00:34]}  Kh6 {[%clk 0:00:11]} 37. Rd7 {[%clk 0:00:33]}  g5 {[%clk 0:00:11]} 38. Kf3 {[%clk 0:00:31]}  Kg6 {[%clk 0:00:11]} 39. Rd5 {[%clk 0:00:28]}  Kf6 {[%clk 0:00:09]} 40. Ra5 {[%clk 0:00:27]}  Rb6 {[%clk 0:00:08]} 41. Rxa4 {[%clk 0:00:27]}  Rxb2 {[%clk 0:00:09]} 42. Rxc4 {[%clk 0:00:28]}  Rb7 {[%clk 0:00:06]} 43. Rc5 {[%clk 0:00:26]}  Ra7 {[%clk 0:00:04]} 44. Kg2 {[%clk 0:00:24]}  g4 {[%clk 0:00:04]} 45. a4 {[%clk 0:00:21]}  Rxa4 {[%clk 0:00:03]} 46. Rxc7 {[%clk 0:00:21]}  Ra2 {[%clk 0:00:03]} 47. Rc5 {[%clk 0:00:20]}  Kg6 {[%clk 0:00:03]} 48. Rc6+ {[%clk 0:00:21]}  Kg5 {[%clk 0:00:03]} 49. Rc8 {[%clk 0:00:20]}  Rc2 {[%clk 0:00:03]} 50. c4 {[%clk 0:00:20]}  Kg6 {[%clk 0:00:04]} 51. c5 {[%clk 0:00:21]}  Kf5 {[%clk 0:00:04]} 52. c6 {[%clk 0:00:19]}  Kg6 {[%clk 0:00:05]} 53. c7 {[%clk 0:00:19]}  Kg7 {[%clk 0:00:05]} 54. Kg1 {[%clk 0:00:19]}  Rc1+ {[%clk 0:00:05]} 55. Kg2 {[%clk 0:00:19]}  Kh7 {[%clk 0:00:06]} 56. Kh2 {[%clk 0:00:17]}  Kg7 {[%clk 0:00:06]} 57. Kg2 {[%clk 0:00:17]}  Kh7 {[%clk 0:00:06]} 58. f3 {[%clk 0:00:17]}  Rc2+ {[%clk 0:00:06]} 59. Kf1 {[%clk 0:00:16]}  gxf3 {[%clk 0:00:07]} 60. Kg1 {[%clk 0:00:16]}  Kg7 {[%clk 0:00:06]} 61. Kf1 {[%clk 0:00:16]}  Kh7 {[%clk 0:00:04]} 62. Kg1 {[%clk 0:00:17]}  Kg7 {[%clk 0:00:05]} 63. Kf1 {[%clk 0:00:17]}  f2 {[%clk 0:00:04]} 64. Rd8 {[%clk 0:00:15]}  Rxc7 {[%clk 0:00:03]} 65. Kxf2 {[%clk 0:00:15]}  Kg6 {[%clk 0:00:04]} 66. Kg2 {[%clk 0:00:15]}  Rc5 {[%clk 0:00:03]} 67. Rg8+ {[%clk 0:00:15]}  Kf5 {[%clk 0:00:03]} 68. Rf8+ {[%clk 0:00:15]}  Kg5 {[%clk 0:00:04]} 69. Rg8+ {[%clk 0:00:16]}  Kf5 {[%clk 0:00:04]} 70. Rf8+ {[%clk 0:00:16]}  Kg5 {[%clk 0:00:05]} 71. Rg8+ {[%clk 0:00:17]}  Kf5 {[%clk 0:00:05]} 1/2-1/2

[Event "November 21 Late 2023"]
[Site "https://www.chess.com"]
[Date "2023.11.21"]
[Round "3"]
[White "Maect19"]
[Black "Toropov, Pavel"]
[Result "1-0"]
[Board "98"]
[TimeControl "180+1"]
[BlackFideId "24129178"]
[WhiteElo "2338"]
[BlackElo "2182"]
[BlackTeam "RUS"]
[WhiteClock "0:00:15"]
[BlackClock "0:00:09"]

1. d4 {[%clk 0:03:00]}  d5 {[%clk 0:02:59]} 2. Nf3 {[%clk 0:03:01]}  Nf6 {[%clk 0:02:59]} 3. e3 {[%clk 0:03:01]}  Bf5 {[%clk 0:02:58]} 4. Bd3 {[%clk 0:03:01]}  Bg6 {[%clk 0:02:58]} 5. O-O {[%clk 0:03:00]}  e6 {[%clk 0:02:57]} 6. b3 {[%clk 0:03:00]}  Bd6 {[%clk 0:02:56]} 7. Bb2 {[%clk 0:03:00]}  O-O {[%clk 0:02:56]} 8. c4 {[%clk 0:02:59]}  c6 {[%clk 0:02:56]} 9. Qe2 {[%clk 0:02:57]}  Qe7 {[%clk 0:02:56]} 10. Nbd2 {[%clk 0:02:57]}  Ne4 {[%clk 0:02:55]} 11. Bxe4 {[%clk 0:02:33]}  Bxe4 {[%clk 0:02:53]} 12. Nxe4 {[%clk 0:02:33]}  dxe4 {[%clk 0:02:54]} 13. Nd2 {[%clk 0:02:33]}  f5 {[%clk 0:02:52]} 14. f3 {[%clk 0:02:26]}  exf3 {[%clk 0:02:51]} 15. Rxf3 {[%clk 0:02:23]}  e5 {[%clk 0:02:45]} 16. d5 {[%clk 0:02:15]}  Nd7 {[%clk 0:02:10]} 17. Raf1 {[%clk 0:02:03]}  g6 {[%clk 0:02:09]} 18. e4 {[%clk 0:01:59]}  f4 {[%clk 0:02:06]} 19. Kh1 {[%clk 0:01:43]}  Rac8 {[%clk 0:02:01]} 20. Rd3 {[%clk 0:01:42]}  Nf6 {[%clk 0:01:50]} 21. Nf3 {[%clk 0:01:40]}  cxd5 {[%clk 0:01:45]} 22. cxd5 {[%clk 0:01:30]}  Rc7 {[%clk 0:01:28]} 23. Nd2 {[%clk 0:01:28]}  b5 {[%clk 0:01:20]} 24. Rc3 {[%clk 0:01:22]}  a6 {[%clk 0:01:18]} 25. Rfc1 {[%clk 0:01:21]}  Rfc8 {[%clk 0:01:17]} 26. Qd3 {[%clk 0:01:15]}  Ng4 {[%clk 0:01:12]} 27. Rxc7 {[%clk 0:00:39]}  Rxc7 {[%clk 0:00:57]} 28. Rxc7 {[%clk 0:00:38]}  Qxc7 {[%clk 0:00:39]} 29. Qc3 {[%clk 0:00:37]}  Nf2+ {[%clk 0:00:30]} 30. Kg1 {[%clk 0:00:37]}  Qb6 {[%clk 0:00:29]} 31. Kf1 {[%clk 0:00:21]}  Nd1 {[%clk 0:00:24]} 32. Qc8+ {[%clk 0:00:21]}  Kg7 {[%clk 0:00:24]} 33. Qd7+ {[%clk 0:00:21]}  Kh6 {[%clk 0:00:21]} 34. Qh3+ {[%clk 0:00:20]}  Kg5 {[%clk 0:00:20]} 35. Nf3+ {[%clk 0:00:19]}  Kf6 {[%clk 0:00:20]} 36. Qe6+ {[%clk 0:00:16]}  Kg7 {[%clk 0:00:20]} 37. Bxe5+ {[%clk 0:00:16]}  Bxe5 {[%clk 0:00:15]} 38. Qxb6 {[%clk 0:00:15]}  Ne3+ {[%clk 0:00:09]} 39. Ke2 {[%clk 0:00:15]} 1-0

[Event "November 21 Late 2023"]
[Site "https://www.chess.com"]
[Date "2023.11.21"]
[Round "3"]
[White "Biernacki, Mark"]
[Black "WindWhistler11"]
[Result "0-1"]
[Board "99"]
[TimeControl "180+1"]
[WhiteFideId "2082322"]
[WhiteElo "1965"]
[BlackElo "2563"]
[WhiteTeam "USA"]
[WhiteClock "0:00:00"]
[BlackClock "0:00:21"]

1. e4 {[%clk 0:02:59]}  e6 {[%clk 0:02:58]} 2. d4 {[%clk 0:02:59]}  d5 {[%clk 0:02:59]} 3. exd5 {[%clk 0:03:00]}  exd5 {[%clk 0:02:59]} 4. Nf3 {[%clk 0:03:00]}  Nc6 {[%clk 0:02:59]} 5. c4 {[%clk 0:02:58]}  Nf6 {[%clk 0:02:54]} 6. Nc3 {[%clk 0:02:57]}  Bb4 {[%clk 0:02:54]} 7. Bd3 {[%clk 0:01:58]}  Bg4 {[%clk 0:02:48]} 8. Be3 {[%clk 0:01:56]}  O-O {[%clk 0:02:45]} 9. c5 {[%clk 0:01:42]}  b6 {[%clk 0:02:29]} 10. cxb6 {[%clk 0:01:38]}  axb6 {[%clk 0:02:26]} 11. h3 {[%clk 0:01:33]}  Bh5 {[%clk 0:02:25]} 12. O-O {[%clk 0:01:33]}  h6 {[%clk 0:02:22]} 13. Be2 {[%clk 0:01:32]}  Bg6 {[%clk 0:02:18]} 14. a3 {[%clk 0:01:32]}  Bxc3 {[%clk 0:02:12]} 15. bxc3 {[%clk 0:01:33]}  Ne4 {[%clk 0:02:12]} 16. Qb3 {[%clk 0:01:23]}  Na5 {[%clk 0:02:05]} 17. Qb2 {[%clk 0:01:23]}  f6 {[%clk 0:02:01]} 18. Rfc1 {[%clk 0:01:12]}  Nd6 {[%clk 0:01:56]} 19. Nd2 {[%clk 0:01:11]}  Bf7 {[%clk 0:01:50]} 20. Bf4 {[%clk 0:01:02]}  Re8 {[%clk 0:01:37]} 21. Bd3 {[%clk 0:00:49]}  Ne4 {[%clk 0:01:35]} 22. Bxe4 {[%clk 0:00:42]}  dxe4 {[%clk 0:01:33]} 23. c4 {[%clk 0:00:42]}  g5 {[%clk 0:01:14]} 24. Bh2 {[%clk 0:00:31]}  e3 {[%clk 0:01:14]} 25. fxe3 {[%clk 0:00:31]}  Rxe3 {[%clk 0:01:15]} 26. Kh1 {[%clk 0:00:22]}  Qe7 {[%clk 0:01:14]} 27. Bg1 {[%clk 0:00:21]}  Re2 {[%clk 0:01:13]} 28. Qc3 {[%clk 0:00:17]}  Re8 {[%clk 0:01:08]} 29. Rf1 {[%clk 0:00:15]}  Bg6 {[%clk 0:01:06]} 30. d5 {[%clk 0:00:14]}  Qe5 {[%clk 0:01:04]} 31. Qb4 {[%clk 0:00:08]}  Be4 {[%clk 0:00:29]} 32. Nxe4 {[%clk 0:00:08]}  Qxe4 {[%clk 0:00:29]} 33. Rf2 {[%clk 0:00:03]}  Rxf2 {[%clk 0:00:20]} 34. Bxf2 {[%clk 0:00:00]}  Qxc4 {[%clk 0:00:21]} 0-1

[Event "November 21 Late 2023"]
[Site "https://www.chess.com"]
[Date "2023.11.21"]
[Round "3"]
[White "Silvestre, Christian"]
[Black "Pinheiro, Iung Alicio de O."]
[Result "0-1"]
[Board "103"]
[TimeControl "180+1"]
[WhiteFideId "30956269"]
[BlackFideId "2104350"]
[WhiteElo "2328"]
[BlackElo "2283"]
[WhiteTeam "USA"]
[BlackTeam "BRA"]
[WhiteClock "0:00:15"]
[BlackClock "0:00:34"]

1. Nf3 {[%clk 0:02:59]}  d5 {[%clk 0:02:58]} 2. c4 {[%clk 0:03:00]}  d4 {[%clk 0:02:57]} 3. b3 {[%clk 0:02:59]}  f6 {[%clk 0:02:56]} 4. Bb2 {[%clk 0:03:00]}  e5 {[%clk 0:02:56]} 5. d3 {[%clk 0:02:54]}  Nc6 {[%clk 0:02:43]} 6. a3 {[%clk 0:02:53]}  a5 {[%clk 0:02:42]} 7. g3 {[%clk 0:02:53]}  Bc5 {[%clk 0:02:20]} 8. Nbd2 {[%clk 0:02:51]}  f5 {[%clk 0:02:19]} 9. Bg2 {[%clk 0:02:43]}  Nf6 {[%clk 0:02:19]} 10. Qc2 {[%clk 0:02:39]}  O-O {[%clk 0:02:12]} 11. O-O {[%clk 0:02:25]}  Qe8 {[%clk 0:02:04]} 12. Nh4 {[%clk 0:01:57]}  Qh5 {[%clk 0:01:51]} 13. Bf3 {[%clk 0:01:44]}  Qh6 {[%clk 0:01:47]} 14. Bd5+ {[%clk 0:01:37]}  Kh8 {[%clk 0:01:43]} 15. Bc1 {[%clk 0:01:35]}  g5 {[%clk 0:01:37]} 16. Ndf3 {[%clk 0:01:33]}  f4 {[%clk 0:01:36]} 17. Ng2 {[%clk 0:01:16]}  Bh3 {[%clk 0:01:25]} 18. Bxc6 {[%clk 0:01:12]}  bxc6 {[%clk 0:01:22]} 19. Nxe5 {[%clk 0:01:12]}  Rae8 {[%clk 0:01:22]} 20. gxf4 {[%clk 0:01:05]}  Rxe5 {[%clk 0:01:06]} 21. fxe5 {[%clk 0:01:04]}  Ng4 {[%clk 0:01:07]} 22. f3 {[%clk 0:00:51]}  Bxg2 {[%clk 0:01:04]} 23. fxg4 {[%clk 0:00:48]}  Bxf1 {[%clk 0:00:41]} 24. b4 {[%clk 0:00:34]}  Qh3 {[%clk 0:00:37]} 25. e4 {[%clk 0:00:31]}  dxe3 {[%clk 0:00:33]} 26. bxc5 {[%clk 0:00:15]}  e2 {[%clk 0:00:34]} 0-1

[Event "November 21 Late 2023"]
[Site "https://www.chess.com"]
[Date "2023.11.21"]
[Round "3"]
[White "OKEKE, Isaac Chukwudalu"]
[Black "Ferreira, Vitor Hugo Vieira"]
[Result "1-0"]
[Board "105"]
[TimeControl "180+1"]
[WhiteFideId "8508526"]
[BlackFideId "2119765"]
[WhiteElo "2161"]
[BlackElo "2123"]
[WhiteTeam "NGR"]
[BlackTeam "BRA"]
[WhiteClock "0:00:21"]
[BlackClock "0:00:26"]

1. e4 {[%clk 0:02:59]}  c5 {[%clk 0:02:59]} 2. f3 {[%clk 0:02:53]}  e6 {[%clk 0:02:58]} 3. d4 {[%clk 0:02:51]}  cxd4 {[%clk 0:02:57]} 4. Qxd4 {[%clk 0:02:51]}  Nc6 {[%clk 0:02:58]} 5. Qf2 {[%clk 0:02:51]}  Nf6 {[%clk 0:02:57]} 6. Nc3 {[%clk 0:02:50]}  d5 {[%clk 0:02:55]} 7. exd5 {[%clk 0:02:50]}  exd5 {[%clk 0:02:56]} 8. Bd3 {[%clk 0:02:47]}  Qa5 {[%clk 0:02:51]} 9. Bd2 {[%clk 0:02:43]}  Bc5 {[%clk 0:02:44]} 10. Qe2+ {[%clk 0:02:42]}  Be7 {[%clk 0:02:30]} 11. Ne4 {[%clk 0:02:36]}  Qb6 {[%clk 0:02:17]} 12. Nxf6+ {[%clk 0:02:04]}  gxf6 {[%clk 0:02:17]} 13. O-O-O {[%clk 0:01:57]}  Be6 {[%clk 0:02:12]} 14. Nh3 {[%clk 0:01:52]}  d4 {[%clk 0:01:59]} 15. Nf4 {[%clk 0:01:41]}  Bxa2 {[%clk 0:01:58]} 16. Bc4 {[%clk 0:01:37]}  Bxc4 {[%clk 0:01:56]} 17. Qxc4 {[%clk 0:01:36]}  a5 {[%clk 0:01:44]} 18. Rhe1 {[%clk 0:01:29]}  O-O {[%clk 0:01:41]} 19. Nd5 {[%clk 0:01:21]}  Qd8 {[%clk 0:01:40]} 20. Bh6 {[%clk 0:01:18]}  Re8 {[%clk 0:01:29]} 21. Nxe7+ {[%clk 0:01:17]}  Rxe7 {[%clk 0:01:28]} 22. Qc5 {[%clk 0:01:06]}  Rxe1 {[%clk 0:01:24]} 23. Rxe1 {[%clk 0:01:06]}  a4 {[%clk 0:01:13]} 24. Re4 {[%clk 0:00:49]}  Ne5 {[%clk 0:01:02]} 25. Rxe5 {[%clk 0:00:29]}  fxe5 {[%clk 0:00:55]} 26. Qxe5 {[%clk 0:00:28]}  f6 {[%clk 0:00:51]} 27. Qe6+ {[%clk 0:00:23]}  Kh8 {[%clk 0:00:51]} 28. Qf7 {[%clk 0:00:22]}  Ra6 {[%clk 0:00:26]} 29. Qg7# {[%clk 0:00:21]} 1-0

[Event "November 21 Late 2023"]
[Site "https://www.chess.com"]
[Date "2023.11.21"]
[Round "3"]
[White "Tifferet, Shaked"]
[Black "Liu, Leonardo"]
[Result "0-1"]
[Board "107"]
[TimeControl "180+1"]
[WhiteFideId "2811529"]
[BlackFideId "30965780"]
[WhiteElo "2142"]
[BlackElo "2268"]
[WhiteTeam "ISR"]
[BlackTeam "USA"]
[WhiteClock "0:00:00"]
[BlackClock "0:00:29"]

1. e4 {[%clk 0:03:00]}  c5 {[%clk 0:02:59]} 2. Ne2 {[%clk 0:02:59]}  g6 {[%clk 0:02:59]} 3. g3 {[%clk 0:02:59]}  Bg7 {[%clk 0:02:59]} 4. Bg2 {[%clk 0:03:00]}  Nc6 {[%clk 0:02:59]} 5. O-O {[%clk 0:03:00]}  e6 {[%clk 0:02:59]} 6. c3 {[%clk 0:02:56]}  Nge7 {[%clk 0:02:56]} 7. d4 {[%clk 0:02:56]}  cxd4 {[%clk 0:02:56]} 8. cxd4 {[%clk 0:02:57]}  d5 {[%clk 0:02:55]} 9. e5 {[%clk 0:02:54]}  O-O {[%clk 0:02:56]} 10. Nbc3 {[%clk 0:02:54]}  b6 {[%clk 0:02:51]} 11. h4 {[%clk 0:02:54]}  Ba6 {[%clk 0:02:52]} 12. h5 {[%clk 0:02:54]}  Nf5 {[%clk 0:02:49]} 13. g4 {[%clk 0:02:45]}  Nh4 {[%clk 0:02:32]} 14. h6 {[%clk 0:02:32]}  Bh8 {[%clk 0:02:29]} 15. f4 {[%clk 0:02:14]}  Nxg2 {[%clk 0:02:25]} 16. Kxg2 {[%clk 0:02:14]}  Qh4 {[%clk 0:02:25]} 17. Ng3 {[%clk 0:02:14]}  Bxf1+ {[%clk 0:02:19]} 18. Qxf1 {[%clk 0:02:13]}  Qxg4 {[%clk 0:02:02]} 19. Be3 {[%clk 0:02:14]}  f6 {[%clk 0:01:59]} 20. Qb5 {[%clk 0:02:08]}  fxe5 {[%clk 0:01:57]} 21. Qxc6 {[%clk 0:01:56]}  exf4 {[%clk 0:01:54]} 22. Bxf4 {[%clk 0:01:57]}  Qxf4 {[%clk 0:01:44]} 23. Qxe6+ {[%clk 0:01:55]}  Qf7 {[%clk 0:01:44]} 24. Qe3 {[%clk 0:01:44]}  Rae8 {[%clk 0:01:41]} 25. Qd2 {[%clk 0:01:42]}  Qf3+ {[%clk 0:01:40]} 26. Kh2 {[%clk 0:01:42]}  Re3 {[%clk 0:01:34]} 27. Qg2 {[%clk 0:01:41]}  Bxd4 {[%clk 0:01:07]} 28. Nxd5 {[%clk 0:01:37]}  Qxg2+ {[%clk 0:01:06]} 29. Kxg2 {[%clk 0:01:38]}  Re5 {[%clk 0:01:00]} 30. Nb4 {[%clk 0:01:23]}  Rf2+ {[%clk 0:00:58]} 31. Kh3 {[%clk 0:01:23]}  Re3 {[%clk 0:00:54]} 32. Nd5 {[%clk 0:01:05]}  Re5 {[%clk 0:00:54]} 33. Nb4 {[%clk 0:01:02]}  Rf3 {[%clk 0:00:53]} 34. Nc2 {[%clk 0:00:44]}  Bc5 {[%clk 0:00:47]} 35. Kg4 {[%clk 0:00:43]}  Rf2 {[%clk 0:00:46]} 36. Ne1 {[%clk 0:00:41]}  Rxb2 {[%clk 0:00:45]} 37. Nd3 {[%clk 0:00:41]}  Ree2 {[%clk 0:00:31]} 38. Nxb2 {[%clk 0:00:13]}  Rxb2 {[%clk 0:00:32]} 39. Rd1 {[%clk 0:00:12]}  Rxa2 {[%clk 0:00:32]} 40. Rd7 {[%clk 0:00:12]}  Bf8 {[%clk 0:00:30]} 41. Ne4 {[%clk 0:00:13]}  Ra4 {[%clk 0:00:29]} 42. Kf4 {[%clk 0:00:06]}  Bxh6+ {[%clk 0:00:28]} 43. Ke5 {[%clk 0:00:07]}  Bg7+ {[%clk 0:00:28]} 44. Kd5 {[%clk 0:00:08]}  Rd4+ {[%clk 0:00:27]} 45. Ke6 {[%clk 0:00:07]}  Rxd7 {[%clk 0:00:28]} 46. Kxd7 {[%clk 0:00:08]}  a5 {[%clk 0:00:28]} 47. Kc6 {[%clk 0:00:04]}  Bd4 {[%clk 0:00:29]} 48. Kb5 {[%clk 0:00:04]}  h5 {[%clk 0:00:28]} 49. Ng5 {[%clk 0:00:03]}  h4 {[%clk 0:00:27]} 50. Nf3 {[%clk 0:00:03]}  Bc5 {[%clk 0:00:27]} 51. Nxh4 {[%clk 0:00:03]}  Kg7 {[%clk 0:00:27]} 52. Nf3 {[%clk 0:00:02]}  Kf6 {[%clk 0:00:28]} 53. Nd2 {[%clk 0:00:02]}  Kf5 {[%clk 0:00:28]} 54. Nb3 {[%clk 0:00:02]}  g5 {[%clk 0:00:29]} 55. Nd2 {[%clk 0:00:02]}  g4 {[%clk 0:00:29]} 56. Nf1 {[%clk 0:00:03]}  Kf4 {[%clk 0:00:29]} 57. Kc4 {[%clk 0:00:00]}  Kf3 {[%clk 0:00:29]} 0-1